Cogmind - Beta 16 @@@ ROGUE MODE // 2026.01.08 @ 23:22:09 Player: c4-BRK Result: Self-destructed Performance ------------- Evolutions (1) 500 Regions Visited (3) 600 Robots Destroyed (29) 145 Value Destroyed (575) 575 Prototype IDs (4) 80 Alien Tech Used (0) 0 Bonus (0) 0 TOTAL SCORE: 1900 Bonus ------- None Cogmind --------- Core Integrity 13/400 Matter 300/300 Energy 100/100 System Corruption 5% Temperature Cool (0) Movement Core (200) Ox3 Location -9/Mines Parts ------- > --- POWER (1) -------- (None) > --- PROPULSION (3) --- (None) > --- UTILITY (3) ------ Medium Storage Unit > --- WEAPON (2) ------- (None) > --- INVENTORY (10) --- Cooled Ion Engine Cooled Ion Engine Cooled Ion Engine Improved Hover Unit Improved Assault Rifle Improved Assault Rifle Light Cannon Rocket Launcher Mining Laser Peak State ------------ > --- POWER ------------ Heavy Ion Engine > --- PROPULSION ------- Wheel Wheel Compact Wheel > --- UTILITY ---------- Medium Storage Unit Light Armor Plating > --- WEAPON ----------- Improved Medium Laser Improved Assault Rifle > --- INVENTORY -------- Cooled Ion Engine Cooled Ion Engine Cooled Ion Engine Improved Hover Unit Heat Sink Particle Gun Improved Assault Rifle Light Cannon Rocket Launcher [Rating: 16] Favorites ----------- Power Heavy Ion Engine Engine Heavy Ion Engine Propulsion Compact Wheel Wheel Compact Wheel Utility Medium Storage Unit Device Heat Sink Storage Medium Storage Unit Protection Light Armor Plating Weapon Improved Assault Rifle Energy Gun Improved Medium Laser Ballistic Gun Improved Assault Rifle Ballistic Cannon Light Cannon Build | -11 -10 -9 -9 ------- Run | Yrd Mat Mat Min Slots Evolved 2 | . . 2 . Power . | . . . . Propulsion 1 | . . 1 . Utility 1 | . . 1 . Weapon . | . . . . Parts Attached 23 | 6 2 15 . Power 3 | 1 . 2 . Engine 3 | 1 . 2 . Core . | . . . . Reactor . | . . . . Propulsion 6 | 2 . 4 . Treads . | . . . . Leg . | . . . . Wheel 6 | 2 . 4 . Hover . | . . . . Flight . | . . . . Utility 6 | 1 2 3 . Device 2 | . 1 1 . Storage 2 | 1 1 . . Processor . | . . . . Hackware . | . . . . Protection 2 | . . 2 . Artifact . | . . . . Weapon 8 | 2 . 6 . Energy Gun 4 | 1 . 3 . Energy Cannon . | . . . . Ballistic Gun 3 | 1 . 2 . Ballistic Cannon 1 | . . 1 . Launcher . | . . . . Special Weapon . | . . . . Impact Weapon . | . . . . Slashing Weapon . | . . . . Piercing Weapon . | . . . . Special Melee Weapon . | . . . . Unidentified Prototypes 4 | . . 4 . Parts Lost 15 | . . 8 7 Power 2 | . . 1 1 Propulsion 6 | . . 3 3 Utility 4 | . . 2 2 Weapon 3 | . . 2 1 Highest Loss Streak 6 | . . 4 6 To Critical Strikes . | . . . . Average Backups 3 | . . 4 8 Power 1 | . . 2 3 Propulsion . | . . . 1 Utility . | . . . . Weapon 1 | . . 2 4 Tool/Special . | . . . . Unused Backups 6 | . . . 6 Power 2 | . . . 2 Propulsion 1 | . . . 1 Utility . | . . . . Weapon 3 | . . . 3 Tool/Special . | . . . . Average Slot Usage (%) 78 | . 95 69 83 Engine 10 | . 14 9 10 Wheel 23 | . 28 21 21 Device 5 | . 9 2 9 Storage 11 | . 14 11 11 Protection 3 | . . 4 9 Energy Gun 9 | . 14 3 20 Ballistic Gun 9 | . 14 10 . Ballistic Cannon 3 | . . 6 . Peak Build Rating 16 | 6 7 16 16 Average Rating 9 | 3 6 10 14 On Entrance 7 | . 6 7 16 Avg Prop Armor Cover (%) . | . . . . Naked Turns . | . . . . Heaviest Build 31 | 11 17 31 28 Greatest Support 36 | 32 32 36 36 Greatest Overweight (x) 3 | . . 3 1 Average Overweight (x) . | . . . . Largest Inventory Capacity 10 | 8 10 10 10 Average Capacity 9 | 6 8 10 10 Most Carried 9 | 5 1 9 9 Average Carried 4 | 1 . 4 8 Final Capacity 10 | 8 10 10 10 Final Carried 9 | . 1 8 9 Class Distribution -------------------- 87% | Mutant 12% | Scavenger-Mutant Dominant Class ---------------- Mutant | -10/Materials Mutant | -9/Materials Scavenger-Mutant | -9/Mines Resources | -11 -10 -9 -9 ----------- Run | Yrd Mat Mat Min Matter Collected 796 | 189 62 530 15 Remotely . | . . . . Salvage Created 831 | . 113 686 32 Parts 56 | . 11 43 2 Haulers Intercepted 3 | . . 3 . Recyclers Shooed . | . . . . Parts Field Recycled . | . . . . Retrieved Matter . | . . . . Parts Self-Destructed . | . . . . Prevented . | . . . . Parts Restored . | . . . . Kills | -11 -10 -9 -9 ------- Run | Yrd Mat Mat Min Combat Hostiles Destroyed 22 | . 6 14 2 Guns 12 | . 6 4 2 Cannons 10 | . . 10 . Classes Destroyed 8 | . 2 6 . Builder 1 | . . 1 . Hauler 3 | . . 3 . Mechanic 1 | . . 1 . Operator 1 | . 1 . . Watcher 1 | . . 1 . Swarmer 12 | . 6 4 2 Grunt 7 | . . 7 . Sentry 3 | . . 3 . Best Kill Streak 6 | . 3 6 2 Combat Bots Only 5 | . 3 5 2 Max Kills in Single Turn 2 | . 1 2 1 Gunslinging . | . . . . Exploded . | . . . . Melee . | . . . . Uniques/NPCs Destroyed . | . . . . Combat | -11 -10 -9 -9 -------- Run | Yrd Mat Mat Min Hostile Shots Fired 176 | . 14 121 41 Missed 42 | . 4 27 11 Hits 134 | . 10 94 30 Melee 8 | . . . 8 Projectile 126 | . 10 94 22 Critical Strikes 8 | . . 6 2 Damage Taken 1673 | . 80 1103 490 Core 408 | . 21 295 92 Absorbed by Shields . | . . . . Core Remaining (%) 95 | 100 91 . . Volleys Fired 95 | . 11 71 13 Largest 2 | . 2 2 2 Hottest 121 | . 60 79 121 Shots Fired 164 | . 18 126 20 Gun 113 | . 18 75 20 Cannon 51 | . . 51 . Launcher . | . . . . Special . | . . . . Kinetic 120 | . 11 109 . Thermal 44 | . 7 17 20 Explosive . | . . . . Electromagnetic . | . . . . Robot Hit Streak 10 | . 6 10 2 Robot Miss Streak 6 | . 1 6 6 Penetration Max . | . . . . Secondary Targets 1 | . 1 . . Max Gunslinging Chain 1 | . 1 . . Shots Hit Robots 93 | . 12 75 6 Core Hits 39 | . 8 29 2 Critical Kills . | . . . . Critical Parts Destroyed 2 | . . 2 . Critical Strikes 4 | . . 4 . Destroy 2 | . . 2 . Blast 2 | . . 2 . Melee Attacks . | . . . . Impact . | . . . . Slashing . | . . . . Piercing . | . . . . Sneak Attacks . | . . . . Combat Hostiles . | . . . . Follow-up Attacks . | . . . . Damage Inflicted 1566 | . 174 1256 136 Guns 910 | . 174 600 136 Cannons 656 | . . 656 . Explosions . | . . . . Melee . | . . . . Ramming . | . . . . Kinetic 1219 | . 107 1112 . Thermal 347 | . 67 144 136 Explosive . | . . . . Electromagnetic . | . . . . Impact . | . . . . Slashing . | . . . . Piercing . | . . . . Highest Corruption 5 | . . . 5 Average Corruption 5 | . . . 5 Corruption Purged . | . . . . Corruption Blocked . | . . . . Overload Shots . | . . . . Overflow Damage 9 | . . 9 . Projectiles 9 | . . 9 . Explosions . | . . . . Melee . | . . . . Knockbacks 2 | . . 2 . Impact . | . . . . Kinetic 2 | . . 2 . Secondary . | . . . . Self-Inflicted Damage . | . . . . Shots . | . . . . Rammed . | . . . . Targets Rammed . | . . . . Kicked . | . . . . Crushed . | . . . . Highest Temperature 165 | . 10 99 165 Average Temperature 52 | . 10 36 72 Received Heat Transfer 555 | . . 555 . Siege Activations . | . . . . Martial Activations . | . . . . Shielding Activations . | . . . . Robots Disrupted . | . . . . Combat Hostiles . | . . . . Robots Corrupted . | . . . . Combat Hostiles . | . . . . Parts Fried . | . . . . Impact Corruptions . | . . . . Robots Melted . | . . . . Combat Hostiles . | . . . . Parts Melted . | . . . . Heat Transferred 768 | . 150 322 296 Parts Sabotaged . | . . . . Parts Stolen . | . . . . Parts Stripped . | . . . . Power Chain Reactions . | . . . . Alert | -11 -10 -9 -9 ------- Run | Yrd Mat Mat Min Maximum Alert Level . | . . . . Low Security (%) 100 | 100 100 100 100 Level 1 . | . . . . Level 2 . | . . . . Level 3 . | . . . . Level 4 . | . . . . Level 5 . | . . . . High Security . | . . . . Max Security . | . . . . Peak Influence 108 | . 70 108 67 Initial 27 | . . 20 27 Average 35 | . 23 46 23 Influence Increases 602 | . 145 407 50 Destroy 0b10 Robot/C 440 | . 120 280 40 Destroy 0b10 Robot/NC 45 | . 5 40 . Destroy Leader 98 | . 20 68 10 Destroy Structure 4 | . . 4 . Partial Spotted 15 | . . 15 . Influence Decreases 602 | . 95 387 120 Entered New Map 73 | . . 30 43 Time Decay 448 | . 95 286 67 Lost Part 81 | . . 71 10 Squads Dispatched . | . . . . Investigation . | . . . . Extermination . | . . . . Reinforcement . | . . . . Assault . | . . . . Garrison . | . . . . Intercept . | . . . . Searches Triggered . | . . . . Construction Impeded . | . . . . Haulers Reinforced . | . . . . Active Scanning Responses . | . . . . Cargo Convoy Interrupts . | . . . . Stealth | -11 -10 -9 -9 --------- Run | Yrd Mat Mat Min Distress Signals . | . . . . Communications Jammed . | . . . . Distress Signals . | . . . . Times Spotted 39 | . 6 18 15 Peak Tracking Total 12 | . 5 5 12 Tactical Retreats 1 | . . . 1 Traps | -11 -10 -9 -9 ------- Run | Yrd Mat Mat Min Traps Triggered . | . . . . Indirectly . | . . . . Trap Hack Attempts . | . . . . Triggered . | . . . . Disarmed . | . . . . Reprogrammed . | . . . . Reused . | . . . . Traps Extracted . | . . . . Installed . | . . . . Triggered . | . . . . Machines | -11 -10 -9 -9 ---------- Run | Yrd Mat Mat Min Machines Disabled . | . . . . Max in Single Turn . | . . . . Machines Repaired . | . . . . Machines Dismantled . | . . . . Machines Sabotaged . | . . . . Overloaded Fab Kills . | . . . . Hacking | -11 -10 -9 -9 --------- Run | Yrd Mat Mat Min Machines Accessed 5 | . 4 1 . Terminals 5 | . 4 1 . Fabricators . | . . . . Repair Stations . | . . . . Recycling Units . | . . . . Scanalyzers . | . . . . Garrison Access . | . . . . Total Hacks 11 | . 9 2 . Successful 3 | . 2 1 . Failed 8 | . 7 1 . Catastrophic 1 | . 1 . . Database Lockouts . | . . . . Manual . | . . . . Terminals 11 | . 9 2 . Fabricators . | . . . . Repair Stations . | . . . . Recycling Units . | . . . . Scanalyzers . | . . . . Garrison Access . | . . . . Terminal Hacks 3 | . 2 1 . Robot Analysis 1 | . 1 . . Hauler Manifests 1 | . 1 . . Registered Components 1 | . . 1 . Fabricator Hacks . | . . . . Repair Station Hacks . | . . . . Recycling Unit Hacks . | . . . . Scanalyzer . | . . . . Garrison Access Hacks . | . . . . Unauthorized Hacks . | . . . . Terminals . | . . . . Fabricators . | . . . . Repair Stations . | . . . . Recycling Units . | . . . . Scanalyzers . | . . . . Garrison Access . | . . . . Data Cores Recovered 1 | . 1 . . Used 1 | . 1 . . Hacking Detections 5 | . 4 1 . Full Trace Events . | . . . . Feedback Events . | . . . . Feedback Blocked . | . . . . Robot Schematics Acquired . | . . . . Robots Built . | . . . . Authchips . | . . . . Time . | . . . . Total Robot Build Rating . | . . . . Part Schematics Acquired . | . . . . Parts Built . | . . . . Authchips . | . . . . Time . | . . . . Total Part Build Rating . | . . . . Part Studies Acquired . | . . . . Parts Repaired . | . . . . Time . | . . . . Parts Recycled . | . . . . Recycled Matter . | . . . . Retrieved Matter . | . . . . Retrieved Components . | . . . . Parts Scanalyzed . | . . . . Part Schematics Acquired . | . . . . Parts Damaged . | . . . . Bothacking | -11 -10 -9 -9 ------------ Run | Yrd Mat Mat Min Used RIF Installer . | . . . . Robots Hacked . | . . . . Non-combat . | . . . . Combat . | . . . . Robot Hacks Applied . | . . . . Relay Couplers Released . | . . . . Fabnet Peak Effective % . | . . . . Robots Rewired . | . . . . Allies Hacked . | . . . . Hacks Repelled . | . . . . Allies | -11 -10 -9 -9 -------- Run | Yrd Mat Mat Min Total Allies 1 | . . . 1 Largest Group 1 | . . . 1 Highest-Rated Group 31 | . . . 31 Highest-Rated Ally 31 | . . . 31 Total Orders . | . . . . Ally Attacks 1 | . . . 1 Total Damage 20 | . . . 20 Kills . | . . . . Allies Corrupted . | . . . . Allies Melted . | . . . . Intel | -11 -10 -9 -9 ------- Run | Yrd Mat Mat Min Active Infowar (turns) . | . . . . Robot Analysis Total 1 | . 1 . . Derelict Logs Recovered . | . . . . Drone Launches . | . . . . Drone Recoveries . | . . . . Exploration | -11 -10 -9 -9 ------------- Run | Yrd Mat Mat Min Turns Passed 1295 | 40 342 724 189 Spaces Moved 887 | 37 247 477 126 Core 16 | 16 . . . Treads . | . . . . Legs . | . . . . Wheels 871 | 21 247 477 126 Hover . | . . . . Flight . | . . . . Fastest Speed 50 | 50 100 86 86 Average Speed 96 | 78 100 93 104 Slowest Speed 125 | 100 100 125 115 Overloaded Moves . | . . . . Propulsion Burnouts . | . . . . Robots Hopped . | . . . . Potential Cave-ins . | . . . . Cave-ins Triggered . | . . . . Exploration Rate (%) 29 | 4 44 41 27 Regions Visited 3 Branch Regions 1 Pre-discovered Areas . | . . . . Known Exits Taken . | . . . . Unknown Exits Taken 3 | 1 1 1 . Scrap Searched 2 | . . . 2 Spaces Dug . | . . . . Terrain Destroyed . | . . . . Melee . | . . . . Projectile . | . . . . AOE . | . . . . Terrain Rammed . | . . . . Walls Destroyed . | . . . . Machines Disabled . | . . . . Actions | -11 -10 -9 -9 --------- Run | Yrd Mat Mat Min Total 1161 | 48 324 626 163 Wait 124 | . 61 40 23 Move 884 | 36 246 476 126 Hop . | . . . . Pick Up 29 | 6 3 19 1 Fast Attach . | . . . . Attach 18 | 6 1 11 . Detach . | . . . . Swap 5 | . 1 4 . Drop 3 | . 1 2 . Fire 95 | . 11 71 13 Melee . | . . . . Ram . | . . . . Kick . | . . . . Crush . | . . . . Escape Stasis . | . . . . Rewire 3 | . . 3 . Trap . | . . . . Miscellaneous . | . . . . Route ------- -11/Scrapyard -10/Materials -9/Materials -9/Mines (discovered 1 exit: [*Mat]) History --------- Turn | Location | Event 9 | -11/Scrapyard | Discovered new exit (range 15) 41 | -11/Scrapyard | Entered Materials 313 | -10/Materials | Build established: Mutant 358 | -10/Materials | Discovered new exit (range 15) 383 | -10/Materials | Entered another Materials area 383 | -9/Materials | Evolved 2 slots: Propulsion x1, Utility x1 452 | -9/Materials | Lost 4 parts (1p1n2w) 673 | -9/Materials | Core integrity fell below 50% 1087 | -9/Materials | Discovered new exit (range 7) 1107 | -9/Materials | Entered Mines 1110 | -9/Mines | Met a Derelict bent on vengeance 1141 | -9/Mines | Discovered new exit (range 7) 1173 | -9/Mines | Received a Mining Laser from a helpful Derelict 1249 | -9/Mines | Assembled infested the area 1254 | -9/Mines | Assisted by a Guerilla fighting off Assembled 1279 | -9/Mines | Core integrity fell below 20% 1296 | -9/Mines | Self-destructed Last Messages --------------- ALERT: Infestation in the mines, dispatching Demolisher response squad. A derelict emerges from the shadows: "You need to get out of here! I've been tracking a group of Assembled to figure out where they're coming from, and they're closing on this area, come on!" K-01 Serf collects debris. K-01 Serf destroyed. Wheel destroyed. Particle Gun severed. Lgt. Armor Plating destroyed. Heat Sink destroyed. The unstable cave ceiling collapses. Hvy. Ion Engine destroyed. Com. Wheel destroyed. Destroyed Asb. Hover Unit. as-78688 destroyed. Imp. Medium Laser destroyed. System corrupted by crushing effect (+5). Map ----- +----------------------------------------------------+ | ??????????????????## #### % ##? | | ???????????????????# ???## #######?? | | ???????????????????# ????# #??????? | | ???????????????????# ????# #?????? | | ???????????????????# ????# #?????? | | ???????????????????# ##??## #?????? | | ???????????????????# ] #???### #????? | | ???????????????????### ?????#### #????? | | ?????????????????????# #?????????# ##????? | | ?????????????????????# #??????????###?????? | | ?????????????????????# ##?????????????????? | | ???????????????????### #?????????????????? | | ?????????? ??????## % #?????????????????? | | ??????????# ?????# [=##?????????????????? | | ??????????# ???# #??????????????????? | | ?????????## ??# ##?????????????????? | | ?????????# ## ##????????????????? | | ?????????# ##???????????????? | | ?????????# * ##??????????????? | | ?????????# [%* ##?????????????? | | ?????????# ### ## a #?????????????? | | ?????????#????### #?##a #?????????????? | | ????????????????# #???# #?????????????? | | ????????????????# ????# #?????????????? | | ????????????????# ????##% ##????????????? | | ????????????????#??????##@ #????????????? | | ????????????????????????#aa #???????????? | | ???????????????????????? #???????????? | | ???????????????????????? ##???????????? | | ??????????????????????? % ##????????????? | | ??????????????????????? a #?????????????? | | ?????????????????????? a #?????????????? | | ?????????????????????? aa #?????????????? | | ????????????????????? #?????????????? | | ????????????????????? a #?????????????? | | ???????????????????? #?????????????? | | ????????????????????# aa ##?????????????? | | ????????????????????### ###??????????????? | | ??????????????????????# ?????????????????? | | ??????????????????????# ?????????????????? | | ??????????????????????? ?????????????????? | | ??????????????????????????????????????????? | | ??????????????????????????????????????????? | | ??????????????????????????????????????????? | | ??????????????????????????????????????????? | | ??????????????????????????????????????????? | | ??????????????????????????????????????????? | | ??????????????????????????????????????????? | | ??????????????????????????????????????????? | | ??????????????????????????????????????????? | +----------------------------------------------------+ Best States ------------- Heat Dissipation 38 Energy Generation 14 Energy Capacity 280 Matter Stores 300 Matter Capacity 300 Sight Range 16 Terrain Scan Density 10 Armor Coverage 225 Evasion (%) 50 Item Schematics ----------------- None Robot Schematics ------------------ None Fabricated ------------ Nothing Repaired ---------- Nothing Studied --------- None Alien Tech Used ----------------- None Achievements -------------- None Challenges ------------ None Game ------ Seed DisintegrationMobileFalx Manual? 0 Play Time 00:12:21 Cumulative 30.5 hours Start 2026.01.08 @ 23:09:57 End 2026.01.08 @ 23:22:09 Sessions 1 Manual Loads 0 Difficulty Rogue Special Mode None Game No. 59 Rogue 38 Adventurer 21 Explorer 0 Win Type - Total 1 Types 0/0/0/0/0/0/0/1/0/0 Lore% 54 Gallery% 33 Achievement% 24 Wizard Run 0 Options --------- Layout 1 ASCII 0 Keyboard 0 Movement Mouse Keybinds 0 Fullscreen 2 Font 24/Smallcaps Map View 50x35 Zoom Use 0% Tactical HUD 0 Map Filters NONE Filters NONE Steam 1 RUN: a826741b-6626-4b08-9ca8-495344dfb084